Workbook

Sheet Schedule 1- General
C1: CONSTRUCTION OF NEW ZAMDELA (IN-AMELIA) CEMETERY
C2: SCHEDULE 1 : GENERAL
B5: Payment | F5: Rate | G5: Amount
A6: Item | B6: Reference | C6: Description | D6: Unit | E6: Qty | F6: (R) | G6: (R)
A8: 1 | C8: SCHEDULE 1: GENERAL
A10: 1.1 | B10: 8.3.1 | C10: CONTRACTUAL REQUIREMENTS
C11: (a) Liaison Officer | D11: Months | E11: 4
C12: (b) Medical Exams for Local labourers | D12: Sum | E12: 1 | F12: R30,000
C13: (c) Training (Generic, Technical, Venue) | D13: Sum | E13: 1 | F13: R60,000
A15: 1.1.2 | C15: Profit in terms of the above | D15: % | E15: =SUM(G11:G13) -> 0
A17: 1.2 | B17: SABS | C17: ESTABLISHMENT OF FACILITIES ON SITE
B18: 1200 A
A19: 1.2.1 | B19: 8.3..2.1 | C19: Facilities For Engineer
C20: (c) Contract Nameboards | D20: No. | E20: 2 | F20: R3,500
C21: (d) Material Testing as Directed by the Engineer | D21: Sum | E21: 1 | F21: R90,000
A23: 1.2.2 | B23: 8.3..2.1 | C23: Facilities For Contractor
C24: (a) Offices and Storage Sheds | D24: m2 | E24: 20
C25: (b) Workshops | D25: m2 | E25: 5
C26: (c) Ablution and Latrine Facilities | D26: m2 | E26: 15
C27: (d)Water Supply, Electric Power and Communication | D27: Sum | E27: 1 | F27: R40,000
A29: 1.2.3 | B29: 8.3.3 | C29: Other Fixed-Charge Obligations
C30: (a) Fixed Obligations | D30: Lump Sum | E30: 1
A32: 1.2.4 | B32: 8.4.1 | C32: Time related Obligations
C33: (b) Time Related Obligations | D33: Monthly | E33: 4
C34: (c ) Health and Safety Obligations | D34: Monthly | E34: 4
D68: CARRIED FORWARD

Sheet Schedule 2-Roads & Platforms
C1: CONSTRUCTION OF NEW ZAMDELA (IN-AMELIA) CEMETERY
C2: SCHEDULE 2 : ROAD WORKS & BUILDING PLATFORMS
B5: Payment | C5: Description | D5: Unit | E5: Qty | F5: Rate | G5: Amount
A6: Item | B6: Reference | F6: (R) | G6: (R)
A8: 2 | C8: SCHEDULE 2: ROAD WORKS
A10: 2.1 | B10: SABS 1200C | C10: SITE CLEARANCE
A12: 2.1.1 | B12: 8.2.1. | C12: Clear and Grub | D12: m2 | E12: =50*25 -> 1250
A13: 2.1.2 | B13: 8.2.1. | C13: Grass Cutting | D13: m2 | E13: =53873.54*60% -> 32324
A15: 2.2 | B15: SABS 1200DM | C15: EARTHWORKS (roads, subgrade)
A17: 2.2.1 | B17: P.S.2.2.1 | C17: (a) Mechanically blend in-situ material to a depth of 250mm | D17: m3 | E17: =7391*0.25 -> 1848
B18: 8.3.5 | C18: Process Subbase Material by the following processes, as relevant and use in the subbase
C19: (b) Heavy grid rolling to a max size of 53mm or two-thirds of the final compacted layer or whichever is smaller | D19: m3 | E19: =E17 -> 1848
C20: (c) Stabilization of 150mm layer processed in (b) above 2,5% | D20: m3 | E20: =E17*0.5 -> 924
B21: 8.3.8 | C21: Stabilizing Agent
C22: (b) Portland Cement | D22: t | E22: =((1920*2.5%*(E20)/1000))*1.15 -> 51
A24: 2.3 | B24: SABS 1200ME | C24: GRAVEL WEARING COURSE
A25: 2.3.1 | B25: 8.3.3 | C25: Construct a 150mm layer of gravel wearing course using G5 material compaction to 95% of modified AASHTO density | D25: m3 | E25: =E20 -> 923.88
A27: 2.4 | B27: SABS 1200MJ | C27: SEGMENTED PAVING
A29: 2.4.1 | B29: 8.2.2 | C29: Construction of 60mm precast interlocking paving blocks on 20mm bedding and filler sand (material is already available on site) | D29: m2 | E29: =3070-1408 -> 1662
C30: Extra over for procuring additional paving blocks | D30: m2 | E30: =5%*E29 -> 83
A31: 2.4.2 | B31: 8.2.3 | C31: Extra Over cutting units to fit edge restraints | D31: m | E31: =E35+E34 -> 505
A33: 2.4.3 | B33: 8.2.1 | C33: Provision of edge restraints
C34: (a) Fig. 3 Kerbing | D34: m | E34: =64+70+237 -> 371
C35: (b) Fig. 12 Kerbing | D35: m | E35: 134
A37: 2.4.5 | B37: 8.2.2 | C37: Construction of 60mm red brick paving on 20mm bedding and filler sand (for paved walkways excluding paving blocks) | D37: m2 | E37: 270
E49: Carried Forward
E50: Brought Forward
A52: 2.5 | B52: SABS | C52: ANCILLARY ROADWORKS
B53: 1200MM
A55: 2.5.1 | B55: 8.3.6 | C55: Supply and erect complete:
C57: Statutory road traffic signs complete:
C59: 01) R201-20 | D59: No | E59: 1
C61: 02) R103 (Command) | D61: No | E61: 1
C63: 03)R1 (Stop sign) | D63: No | E63: 1.00
C66: Retro-reflective road marking paint
C68: a) Longitudinal lines
C69: i) 100 mm wide brocken or unbrocken lines; white, yellow or red | D69: km | E69: 0.20
C70: ii) 150 mm wide brocken or unbrocken lines; white, yellow or red | D70: km | E70: 0.00
C72: b) Transverse lines and other markings
C74: i) Broken or unbroken lines ; white or yellow | D74: m² | E74: 15
C75: ii) Lettering and symbols, white or yellow, markings | D75: m² | E75: 15
D102: CARRIED FORWARD

Sheet Schedule 3-Stormwater
A1: CONSTRUCTION OF NEW ZAMDELA (IN-AMELIA) CEMETERY
C2: SCHEDULE 3 : STORMWATER
B6: Payment | C6: Description | D6: Unit | E6: Qty | F6: Rate | G6: Amount
A7: Item | B7: Reference | F7: (R) | G7: (R)
A8: 3 | C8: SECTION 3: STORMWATER DRAINAGE
A10: 3.1 | B10: SABS | C10: PIPE TRENCHES:
B11: 1200 DB
C12: EXCAVATION
A14: 3.1.1 | B14: 8.3.2(a) | C14: Excavate in all materials for trenches, backfill, compact and dispose of surplus/unsuitable material, :
C16: For pipe culverts 0,0 -1,5m deep. for pipes (prov)
C17: (a) 450mm (0-1.0m) | D17: m | E17: =13.24+15.743+9.189 -> 38
C18: (b) 600mm (1-2,0m) | D18: m | E18: 20
C19: For pipe culverts '450 mm diam. for depths (prov)
C21: For open channel trenches and side drains: | D21: m | E21: =54.43+41+14.1+12.37+(4*6.83)+700 -> 849
C22: For subsurface drains 160mm dia for depths between 0-3m: | D22: m | E22: =690.11+604.39 -> 1295
C23: For installation of polythene sheeting aloongside berm for depths up to 2.5m: | D23: m | E23: =631*1.2 -> 757
A26: 3.1.2 | B26: 8.3.2(b) | C26: Extra-over item 3.1.1 for :
C27: (a) Intermediate excavation | D27: m3 | E27: =60%*E17*1*1 -> 23
C28: (b) Hard rock excavation | D28: m3 | E28: =5%*E17*1*1 -> 2
A30: 3.1.3 | B30: 8.3.3 | C30: Make up deficiency in backfill material from commercial source | D30: m3 | E30: 5
A31: 3.1.4 | B31: 8.3.5 | C31: Excavation and protection of existing services | D31: m | E31: 15
A33: 3.2. | B33: SABS 1200 LB | C33: BEDDING AND FILL BLANKET
A34: 3.2.1 | B34: 8.2.1 | C34: Provision of bedding (Class B) material from trench excavations
C35: 01. Selected granular material | D35: m3 | E35: 0
C36: 02. Selected fill material | D36: m3 | E36: 0
A38: 3.2.2 | B38: 8.2.2.3 | C38: Provision of bedding (Class B) material from commercial sources
C39: a) Selected granular material | D39: m3 | E39: =(0.6*1*E23*0.5)+(0.4*1*0.5*E22) -> 486.06
C40: b) Selected fill material for use in subsoil drains (G7 or better) | D40: m3 | E40: =0.6*E22*1 -> 776.7
C41: c) Selected 19mm stone for use in sub-soil drains | D41: m3 | E41: =E22*0.3*0.6*1.1 -> 256.311
C42: d) Synthetic-fibre filter fabric (Grade A2 or equivalent) | D42: m2 | E42: 2304
C43: e) HDPE Liner for Subsurface system along the Berm 0.3mm | D43: m² | E43: =(2.5)*E23 -> 1893
A44: 3.2.3 | C44: Stabilised backfilling (including supply of stabilising agent) of roadway trenches where directed by the Engineer, using 4% PBFC | D44: m3 | E44: =40*0.3 -> 12
A46: 3.3 | B46: SABS 1200LE | C46: PIPES
A47: 3.3.1 | B47: 8.2.1 | C47: Supply, handle, lay, bed Class B, concrete pipe Type Ogee and Class 100D pipes
C48: a) 450 mm diameter | D48: m | E48: =E17 -> 38
C49: c) 600 mm diameter | D49: m | E49: =E18 -> 20
E53: Carried Forward
E54: Brought Forward
A55: 3.3.2 | C55: Pipes in subsoil drainage systems:
C56: a) 160mm HDPE slotted subsoil drain pipe (black coupling) | D56: m | E56: =E22 -> 1295
A58: 3.3.3 | C58: HEADWALLS:
A59: 3.3.4 | B59: 8.2.7 | C59: Supply and lay Concrete Inlets & outlets to culverts
C60: a) 450 mm diameter | D60: No | E60: 1
C61: b) 600 mm diameter | D61: No | E61: 2
A63: 3.3.5 | B63: 8.2.8 | C63: Supply and Install Manholes, Catchpits, and the like
C64: a) brick manholes complete with cover slabs
C65: b) 0 to 1m | D65: No | E65: 0
C66: c) 2m and above | D66: No | E66: 0
C67: d) Stormwater grid inlet as per drawings, complete with manhole. Depth 0-1m | D67: No | E67: 2
C68: e) 4m long kerb inlet complete as per detail drawings | D68: No | E68: 1
A70: 3.3.6 | C70: Concrete Outlet Structures, Manhole Boxes, Junction Boxes and cleaning eyes for subsoil drainage systems:
C71: (a) Outlet structures (Soakaway complete with all the earthworks valves and piping complete with infiltrator chamber system 500 litre capacity) | D71: No. | E71: 2
C72: (b) Manhole boxes | D72: No. | E72: =11-5 -> 6
C73: (c) Junction boxes | D73: No. | E73: 0
C74: (d) Cleaning eyes | D74: No. | E74: =E56/30 -> 43
C75: Concrete caps for subsoil drains pipes | D75: No. | E75: 22
C76: Test flushing of pipe subsoil drains | D76: No. | E76: 11
A78: 3.4 | B78: SABS | C78: CONCRETE KERBING
B79: 1200 MK
A81: 3.4.1 | B81: 8.2.7 | C81: Trimming of Excavations for Concrete Lined Open Drains
C82: (a) In Soft Material | D82: m2 | E82: 0
C83: (b) In Intermediate Material | D83: m2 | E83: =E21*1.2 -> 1019
A85: 3.4.2 | B85: 8.2.8 | C85: Cast-In-Situ Concrete Lining to Open Drains Class 25/19 Concrete 120mm thick 2m long Panels | D85: m3 | E85: =((1.2*0.1))*(6.83*4) -> 3.2784
C87: Formwork to Cast-In-Situ Concrete Lining Open Drains | D87: m2 | E87: =E85 -> 3.2784
C89: Testing of cubels | D89: No | E89: 4
C91: Type 193 fabric reinforcement in concrete surface beds, slabs, etc | D91: m2 | E91: =E85/0.1 -> 32.784
D107: CARRIED TO SUMMARY

Sheet Schedule 4 Water
C1: CONSTRUCTION OF NEW ZAMDELA (IN-AMELIA) CEMETERY
C2: SCHEDULE 4 : WATER NETWORK
A5: Item | B5: Payment Reference | C5: Description | D5: Unit | E5: Qty | F5: Rate (R) | G5: Amount (R)
A7: 4 | C7: SECTION 4: WATER NETWORK
A8: 4.1 | B8: SABS 1200DB | C8: EARTHWORKS (PIPE TRENCHES)
C10: EXCAVATION AND BACKFILLING
A11: 4.1.1 | B11: 8.3.2 | C11: Excavate in all materials for trenches 0 - 1m wide,compact backfill, and dispose of surplus and unsuitable material within the freehaul distance
C12: a) up to 1,5 m in depth in intermediate excavation | D12: m³ | E12: =(20*0.6*1) -> 12
A14: 4.1.2 | B14: 8.3.2 | C14: Extra-over item 8.3.2(a) for:
C15: Identifying existing pipes and establishing connections | D15: m³ | E15: 50
B16: 8.3.2 | C16: (c) Excavate unsuitable material from trench bottom and dispose within the freehaul distance. | D16: m³ | E16: =0.1*(E12) -> 1.2
A18: 4.2 | B18: SABS 1200LB | C18: BEDDING
A19: 4.2.1 | B19: 8.2.1 | C19: Provision of bedding material from trench excavations
C20: 1) Selected granular material | D20: m³ | E20: 0
C21: 2) Selected fill material | D21: m³ | E21: 0
A23: 4.2.2 | B23: 8.2.2.1 | C23: Provision of bedding material by importation from other necessary excavations (freehaul within the site boundaries)
C24: 1) Selected granular material | D24: m³ | E24: =20*0.15*0.6 -> 1.80
C25: 2) Selected fill material | D25: m³ | E25: 5
A27: 4.3 | B27: SABS 1200L | C27: PIPEWORK
A28: 4.3.1 | B28: 8.2.1 | C28: Supply, handle,lay, joint, bed, test HDPE water supply mains with rubber rings integrally moulded couplings Z-lok to SABS 966 (Part 1)
C29: 1) 20 mm dia class 16 | D29: m | E29: 20
C30: 2) 63 mm dia class 16 | D30: m | E30: 10
A32: 4.3.2 | C32: Disinfect all reticulation mains | D32: m | E32: =SUM(E29:E31) -> 30
A34: 4.3.3 | B34: 8.2.3 | C34: VALVES
C35: Extra-over item 4.7 for the supplying, fixing and bedding of valves. Valves to be anti-clockwise closing non-rising spindle type to SABS 664.
C36: (a) Class 16 gate valves with caps :
C37: plain ending for uPVC pipes to SABS 664
C38: 1) 20 mm dia | D38: No. | E38: 3
C39: 2) 63 mm dia | D39: No. | E39: 2
A41: 4.3.4 | B41: 8.2.13 | C41: b) Valve chambers | D41: No. | E41: 5
A43: 4.3.5 | B43: 8.2.4 | C43: FITTINGS AND SPECIALS
A44: 4.3.6 | B44: 8.2.2 | C44: Extra-over item 4.7 for the supplying, laying and bedding of specials for use with HDPEpipes complete with Couplings
C45: Class 10 uPVC Pressure Bends for:
C46: 20mm dia. uPVC pipe
C47: 1) 90 degree bend | D47: No. | E47: 6
C48: 2) 45 degree bend | D48: No. | E48: 1
C49: 63 mm dia. uPVC pipe
C50: 1) 90 degree bend | D50: No. | E50: 2
C51: 2) 45 degree bend | D51: No. | E51: 3
E55: CARRIED FORWARD
E56: BROUGHT FORWARD
A58: 4.3.7 | C58: Pressure reducing Valves with Rubber rings for 1600 kPa working pressure
C59: Reducers for:
C60: 1) 110 x 63mm dia. | D60: No. | E60: 0
C61: 2) 63 x 20mm dia. | D61: No. | E61: 1
C63: Equal T-Pieces for:
C64: 1) 20 mm dia. uPVC | D64: No. | E64: 3
C65: 2) 60 mm dia. uPVC | D65: No. | E65: 3
C67: End caps / Stop ends for:
C68: 1) 20 mm dia. uPVC | D68: No. | E68: 4
A70: 4.3.8 | C70: FIRE HYDRANT ASSEMBLIES
C71: Fire Hydrant to be 63mm hi-efficiency hydrant set complete with flanged spacer (300mm), duck foot bend, hand wheeled RSV valve flanged valve spacer 500mm with HDG bolts and washers full face gasket(klinger) and S specials to be carboline coated 350 microns inside and outside complete with flanged cast iron T | D71: No. | E71: 1
B72: 8.2.4 | C72: Hydrant chambers to be built with engineering face brick with DCI Cover and frame | D72: No. | E72: 1
A74: 4.4 | B74: SABS 1200 LF | C74: ERF CONNECTIONS
A76: 4.4.1 | C76: Saddles
C77: Supply and install polypropylene saddles for ERF connections. Saddles to fit the following pipes:
C79: 02) 63mm dia uPVC Class16 pipe | D79: No | E79: 0
C80: 03) 20 mm dia uPVC Class 16 pipe | D80: No | E80: 14
A82: 4.4.2 | C82: SUNDRIES
C83: (a) 20mm cast iron stand pipe with 15mm heavy duty brassbibtap, 600mm from the NGL. 20mm cast iron stand pipe to be encased in 1100uPVC pipe , 150mm below NGL and 350mm above NGL, and filled with 15MPa mass concrete | D83: No | E83: 11
A85: 4.4.3 | B85: 8.2.11 | C85: Anchor/Thrust blocks as detailed Grade 15/19 MPa concrete for:
C86: Anchor/Trust blocks complete | D86: m³ | E86: 15
C88: Supply and install 63mm bulkwater meter | D88: No. | E88: 0
C89: Construction of chamber at connection point | D89: Sum | E89: 0
C91: EXISTING SERVICES
C92: a) Services that intersect a trench
C93: Water | D93: No. | E93: 3
C94: Sewer | D94: No. | E94: 4
C102: CARRIED FORWARD TO SUMMARY

Sheet Schedule 5 Sewer
C1: CONSTRUCTION OF NEW ZAMDELA (IN-AMELIA) CEMETERY
C2: SCHEDULE 5 :SEWER NETWORK
A5: Item | B5: Payment Reference | C5: Description | D5: Unit | E5: Qty | F5: Rate (R) | G5: Amount (R)
A7: 5.0 | C7: SEWER NETWORK
C8: EARTHWORKS : SEWER PIPE TRENCHES
A10: 5.1 | B10: SABS 1200 DB | C10: EXCAVATION AND BACKFILLING
A11: 5.1.1 | B11: 8.3.2(a) | C11: Excavate in all materials, backfill, compact and dispose of surplus and unsuitable materials, within the freehaul distance, for trenches less than 1,0 m wide
C12: (a) 0,0 to 1,0 m | D12: m3 | E12: =151*0.6*1 -> 91
A14: 5.1.2 | B14: 8.3.2.(b) | C14: Extra over items 8.3.2(a) for :
A15: 5.1.3 | B15: 8.3.2(c) | C15: Excavate unsuitable material from the trench bottom and dispose of within the freehaul distance | D15: m³ | E15: 5
C17: PARTICULAR ITEMS
A18: 5.1.4 | B18: 8.3.4 a | C18: Shore trench opposite structure or service | D18: m | E18: 20
C20: EXCAVATION ANCILLARIES
A21: 5.1.5 | B21: 8.3.3.3 | C21: Additional compaction to 93% mod AASHTO density in road reserves | D21: m³ | E21: =20*0.3*1 -> 6
A23: 5.2 | B23: SABS 1200 LB | C23: BEDDING
A24: 5.2.1 | B24: 8.2.1 | C24: (a) Provision of bedding material from trench excavations selected granular material | D24: m³ | E24: 0
C25: (b) Selected fill material | D25: m³ | E25: 0
A27: 5.2.2 | B27: 8.2.2.1 | C27: Provision of bedding material by importation from other necessary excavations (freehaul within the site boundaries)
C28: (a) Selected granular material | D28: m³ | E28: =0.05*0.6*140 -> 4
C29: (b) Selected fill material | D29: m³ | E29: =E28 -> 4
A31: 5.3 | B31: SABS 1200 LD | C31: PIPEWORK
A32: 5.3.1 | B32: 8.2.1 | C32: Supply, lay, joint, bed and test uPVC Heavy Duty Class 40 pipes
C33: (b) 110 mm dia | D33: m | E33: 151
A35: 5.3.2 | B35: 8.2.3 | C35: MANHOLES
C36: Precast concrete chambers 1250mm diameter complete with step irons and heavy duty Type DCI cover and frame as per drawings. All benching to have topping with dolomitic aggregate CAC cement. All channels to be vitro with chamber rings to be bit sealed in joints and taped outside
A37: 5.3.2.1 | C37: (c) deeper than 0.9 m but not deeper than 1.2 m | D37: No | E37: 2
A39: 5.3.3 | C39: RODDING EYES
C40: Supply and install sewer rodding eyes complete as per detail drawings for depths with lamphole cover and frame
C41: (a)up to 1.5 m in depth | D41: No | E41: 8
C42: (b)deeper than 1.5 m but not deeper than 3.0 m | D42: No | E42: 0
C43: (c)deeper than 3.0 m but not deeper than 5,0 m | D43: No | E43: 0
A49: CARRIED FORWARD
A50: BROUGHT FORWARD
A52: 5.3.4 | C52: CONNECT TO EXISTING
C53: (a)Break into existing manhole and connect new 110mm sewer pipe complete | D53: No | E53: 1
A55: 5.3.5 | B55: 8.2.6 | C55: ERF CONNECTIONS
C56: Excavate by hand and expose existing house connections extend the existing sewer house connection with new with new 110 uPVC pipe and connect to new 110mm uPVC pipe. Complete, including material, labour fordepth of:
C57: (a) up to 1,0 m in depth | D57: m | E57: 5
C58: (b) deeper than 1,0 m but not deeper than 1,5m | D58: m | E58: 0
A60: 5.3.6 | C60: SUNDRIES
B61: 8.2.7 | C61: Encasing pipes in class 20/19 concrete | D61: m³ | E61: 1
A106: CARRIED TO SUMMARY

Sheet Schedule 6 Buildings
C1: CONSTRUCTION OF NEW ZAMDELA (IN-AMELIA) CEMETERY
C2: SCHEDULE 6 :BUILDINGS
B5: Payment | C5: Description | D5: Unit | E5: Qty | F5: Rate | G5: Amount
A6: Item | B6: Ref | F6: (R) | G6: (R)
A7: 6.1 | C7: BILL NO 6.1 | D7: H1
C9: CONCRETE, FORMWORK AND REINFORCEMENT | D9: H2
C11: Tenderers are referred to the "General Preambles for Trades" 2017 Edition, published by the Association of South African Quantity Surveyors (ASAQS).
C13: SUPPLEMENTARY PREAMBLES | D13: H3
C15: Cost of tests | D15: H4
C17: The costs of making, storing and testing of concrete test cubes as required under clause 7 "Tests" of SANS 1200 G shall include the cost of providing cube moulds necessary for the purpose, for testing costs and for submitting report s on the tests to the architect. The testing shall be undertaken by an independent firm or institution nominated by the contractor and to the approval of the architect. (Test cubes are measured separately)
C19: Formwork | D19: H4
C20: Descriptions of formwork shall be deemed to include use and waste only (except where described as "left in" or "permanent"), for fitting together in the required forms, wedging, plumbing and fixing to true angles and surfaces as necessary to ensure easy release during stripping and for reconditioning as necessary before re-use. The vertical strutting shall be carried down to such construction as is sufficiently strong to afford the required support without damage and shall remain in position until the newly constructed work is able to support itself.
C22: Formwork to soffits of (solid) slabs etc shall be deemed to be to slabs not exceeding 250mm thick unless otherwise described
C24: UNREINFORCED CONCRETE CAST AGAINST EXCAVATED SURFACES | D24: H3
C26: UNREINFORCED CONCRETE | D26: H3
C28: 20Mpa/20mm concrete | D28: H4
A30: 6.1.1 | C30: Surface beds on waterproofing including thickening | D30: m3 | E30: 0
A31: 6.1.2 | C31: Ramps | D31: m3 | E31: 0.40
C33: REINFORCED CONCRETE CAST AGAINST EXCAVATED SURFACES | D33: H3
C34: 25MPa/20mm concrete | D34: H4
A35: 6.1.3 | C35: Strip footings | D35: m3 | E35: 0
A36: 6.1.4 | C36: Bases | D36: m3 | E36: 3
A42: CARRIED FORWARD
A43: BROUGHT FORWARD
C44: REINFORCED CONCRETE | D44: H3
C46: 25MPa/20mm concrete | D46: H4
A48: 6.1.5 | C48: Slabs, including beams and inverted beams | D48: m3 | E48: 3
C50: TEST CUBES | D50: H3
A52: 6.1.6 | C52: Making and testing 150 x 150 x 150mm concrete strength test cubes (Provisional) | D52: No. | E52: 5
C54: CONCRETE SUNDRIES | D54: H3
C56: Finishing top surfaces of concrete smooth with a wood float/steel trowel | D56: H4
C58: Rough formwork to soffits | D58: H4
A60: 6.1.7 | C60: Slabs propped up exceeding 3.5m and not exceeding 5m high | D60: m2 | E60: 17
A61: 6.1.8 | C61: Edges, risers, ends and reveals not exceeding 300mm high or wide | D61: m | E61: 29
C63: MOVEMENT JOINTS ETC | D63: H3
C65: Expansion joints with softboard between vertical concrete and brick surfaces | D65: H4
A67: 6.1.9 | C67: 10mm Joints not exceeding 300mm high along edges of surface beds | D67: m | E67: 240
C69: REINFORCEMENT (PROVISIONAL) | D69: H3
A71: 6.1.10 | C71: Mild steel bar reinforcement | D71: kg | E71: 0
A72: 6.1.11 | C72: High tensile steel bar reinforcement | D72: kg | E72: =80%*1422 -> 1138
C74: Fabric reinforcement | D74: H4
A76: 6.1.12 | C76: Type 193 fabric reinforcement in concrete surface beds, slabs, etc | D76: m2 | E76: =50%*136 -> 68
A95: CARRIED FORWARD
A96: BROUGHT FORWARD
A97: 6.2 | C97: BILL NO 6.2 | D97: H1
C99: MASONRY | D99: H2
C101: Tenderers are referred to the "General Preambles for Trades" 2017 Edition
C103: SUPPLEMENTARY PREAMBLES | D103: H3
C105: BRICKWORK | D105: H4
C107: Sizes in descriptions | D107: H4
C109: Where sizes in descriptions are given in brick units, "one brick" shall represent the length and "half brick" the width of a brick
C111: Pointing | D111: H4
C113: Descriptions of recessed pointing to fair face brickwork and face brickwork shall be deemed to include square recessed, hollow recessed, weathered pointing, etc
C115: Face bricks | D115: H4
C117: Bricks shall be ordered timeously to obtain uniformity in size and colour
C119: SAMPLES | D119: H4
C121: Samples of all masonry building units, shall consist of a minimum of 6 units
C123: PAVINGS | D123: H4
C125: Jointing of pavings | D125: H4
C127: Pavings, etc, shall, except for crazy paving, be laid with continuous joints in both directions
C129: FOUNDATIONS | D129: H3
C131: Brickwork of NFX bricks (14 MPa nominal compressive strength) in class I mortar | D131: H4
A133: 6.2.1 | C133: 110mm Walls | D133: m2 | E133: 0
A134: 6.2.2 | C134: 220mm Walls | D134: m2 | E134: 0
C136: SUPERSTRUCTURE (Exclude cost of Bricks) | D136: H3
C137: Maize Travertine FBX and Titamium Satin FBX | D137: H4
A138: 6.2.3 | C138: 115mm Walls | D138: m2 | E138: =(111-62)*1.3 -> 64
A139: 6.2.4 | C139: 115mm Walls in beam filling | D139: m2 | E139: 12
A140: 6.2.5 | C140: 230mm Walls | D140: m2 | E140: =(429-244)*1.3 -> 241
A141: 6.2.6 | C141: 230mm Walls (perforated brick) | D141: m2 | E141: 40
A144: CARRIED FORWARD
A145: BROUGHT FORWARD
C146: BRICKWORK SUNDRIES | D146: H3
C148: Brickwork reinforcement | D148: H4
A150: 6.2.7 | C150: 75mm Wide reinforcement built in horizontally | D150: m | E150: 1047
A152: 6.2.8 | C152: 150mm Wide reinforcement built in horizontally | D152: m | E152: 2197
C154: Prestressed fabricated lintels | D154: H4
A156: 6.2.9 | C156: 110 x 70mm Lintels in lengths not exceeding 3m | D156: m | E156: 153
C158: Turning pieces | D158: H4
A160: 6.2.10 | C160: 110mm Wide turning pieces to lintels | D160: m | E160: 41
C162: Galvanised wire ties etc | D162: H4
A164: 6.2.11 | C164: 4mm Diameter roof tie 2m girth bent double with one end fixed to timber and other end built into brickwork | D164: No | E164: 88
C166: BRICKS | D166: H2
C167: Face bricks pointed with recessed horizontal and vertical joints
D168: H3
A169: 6.2.12 | C169: Extra over for bricks (Titanium Satin FBX) | D169: m2 | E169: =(209-115)*20% -> 19
A170: 6.2.13 | C170: Extra over for bricks (Titanium Satin FBX) | D170: m2 | E170: =(220-129)*20% -> 18
A172: 6.3 | C172: BILL NO 6.3 | D172: H1
C174: WATERPROOFING | D174: H2
C175: Tenderers are referred to the "General Preambles for Trades" 2017 Edition, published by the Association of South African Quantity Surveyors (ASAQS).
C177: DAMPPROOFING OF WALLS AND FLOORS | D177: H3
C178: One layer of 375 micron "Plastall Gundle Brikgrip DPC" embossed damp proof course | D178: H4
A180: 6.3.1 | C180: In walls | D180: m2 | E180: 2
C181: One layer of 250 micron "Plastall Gundle Gunplas USB Green" waterproof sheeting sealed at laps with "Gunplas Pressure Sensitive Tape" | D181: H4
A183: 6.3.2 | C183: Under surface beds | D183: m2 | E183: 3
C185: WATERPROOFING TO ROOFS, BASEMENTS, ETC | D185: H2
C186: 4mm Torch-on polyester based sheeting | D186: H4
A188: 6.3.3 | C188: Flat roofs | D188: m2 | E188: 4
A190: 6.3.4 | C190: Turn-ups and turn-downs exceeding 300mm high | D190: m2 | E190: 3
C192: WATERPROOFING PROTECTION | D192: H2
C193: Two coats protective aluminium paint | D193: m2 | E193: 4
A195: CARRIED FORWARD
A196: BROUGHT FORWARD
A197: 6.3.5 | C197: Roofs
C199: JOINT SEALANTS ETC | D199: H3
C200: Two-part grey polysulphide sealing compound, including backing cord, bond breaker, primer, etc | D200: H4
A202: 6.3.6 | C202: 10 x 10mm In joints in vertical surfaces, including raking out joint filler as necessary | D202: m | E202: 159
A204: 6.4 | C204: BILL NO 6.4 | D204: H1
C206: ROOF COVERINGS ETC | D206: H2
C207: Tenderers are referred to the "General Preambles for Trades" 2017 Edition, published by the Association of South African Quantity Surveyors (ASAQS).
C209: SUPPLEMENTARY PREAMBLES | D209: H3
C211: Straight cutting | D211: H4
C213: Descriptions of all roof coverings are deemed to include for all straight cutting
C215: PROFILED METAL SHEETING AND ACCESSORIES | D215: H2
C217: 0.58mm IBR profile galvanised steel troughed sheeting with "Chromadek" finish on one side, in single lengths fixed to timber purlins or rails and 0.8mm galvanised steel accessories with "Chromadek" finish on one side | D217: H4
A219: 6.4.1 | C219: Roof coverings with pitches not exceeding 25 degrees | D219: m2 | E219: 217
A221: 6.4.2 | C221: Side claddings | D221: m2 | E221: 73
A223: 6.4.3 | C223: Side wall flashings 308mm girth | D223: m | E223: 20
A225: 6.4.4 | C225: Ridge cappings 462mm girth | D225: m | E225: 15
C227: ROOF AND WALL INSULATION | D227: H3
C229: Isoboard high density rigid extruded polystyrene closed cell insulation boards with brown paper and polyethylene laminate slip sheet factory applied to upper surface, with tongue and groove joints | D229: H4
A231: 6.4.5 | C231: 25mm Insulation boards in 0.60m widths laid over purlins (at approximately 760mm centres) and fixed concurrent with roof covering, including holes through boards, nylon supporting straining wires, etc | D231: m2 | E231: 122
A233: 6.5 | C233: BILL NO 6.5 | D233: H1
C234: CARPENTRY AND JOINERY | D234: H2
C235: SUPPLEMENTARY PREAMBLES | D235: H3
C236: Tenderers are referred to the "General Preambles for Trades" 2017 Edition, published by the Association of South African Quantity Surveyors (ASAQS).
A237: CARRIED FORWARD
A238: BROUGHT FORWARD
C239: Joinery | D239: H4
C241: Descriptions of frames shall be deemed to include frames, transomes, mullions, rails, etc
C243: ROOFS, ETC | D243: H3
C244: ROOF CONSTRUCTION | D244: H2
C246: The following in plate-nailed SA pine grade 6 pre-fabricated timber trusses at 760mm centres, designed, supplied, delivered and erected complete including jack trusses, rafters, permanent and temporary bracing, necessary brackets, purlins, wall plates, etc | D246: H3
C247: Plate nailed timber roof truss construction | D247: H4
A249: 6.5.1 | C249: Mono-pitch roof truss, approximately 9900 x 1994mm high overall with 400mm eaves projection on one side and 1994mm on the other side including wall plates, bracings and purlins at 1.20m centres for roof coverings | D249: Item | E249: 1
A251: 6.5.2 | C251: Mono-pitch roof truss, approximately 9900 x 1100mm high overall with 400mm eaves projection on one side and 1100mm on the other side including wall plates, bracings and purlins at 1.20m centres for roof coverings | D251: Item | E251: 1
A253: 6.5.3 | C253: Mono-pitch triangular roof truss, approximately 12150 x 1100mm high overall with 400mm eaves projection on one side and 1100mm on the other side including wall plates, bracings and purlins at 1.20m centres for roof coverings | D253: Item | E253: 1
C255: EAVES, VERGES, ETC | D255: H2
C257: Nutec" medium density plain sheets | D257: H4
A259: 6.5.4 | C259: 12 x 225mm Fascias and barge boards, including H-profile plastic jointing strips | D259: m | E259: 63
C261: SKIRTINGS | D261: H3
A262: 6.5.5 | C262: 70x19mm Meranti skirting with 19mm Meranti quarter round | D262: m | E262: 220
C263: DOORS, ETC | D263: H3
C265: Solid core flush panel door with hardboard on both sides hung to steel frames | D265: H4
A267: 6.5.6 | C267: 44mm Door 813 x 2032mm high (Type B) | D267: No | E267: 19
C269: Solid meranti flush panel door with 300mm high protection plate hung to steel frames | D269: H4
A271: 6.5.7 | C271: 44mm Door 820 x 2100mm high (Type C) | D271: No | E271: 1
C273: Wrought meranti slatted doors | D273: H4
A275: 6.5.8 | C275: 44mm Horizontal slatted door 813 x 2032mm high (Type A) | D275: No | E275: 7
A277: 6.5.9 | C277: 44mm Horizontal slatted door 813 x 2032mm high (Type D) | D277: No | E277: 3
A278: CARRIED FORWARD
A279: BROUGHT FORWARD
A280: 6.6 | C280: BILL NO 6.6 | D280: H1
C282: CEILINGS, PARTITIONS AND ACCESS FLOORING | D282: H2
C284: Tenderers are referred to the "General Preambles for Trades" 2017 Edition, published by the Association of South African Quantity Surveyors (ASAQS).
C286: SUPPLEMENTARY PREAMBLES | D286: H3
C287: Descriptions | D287: H4
C288: Items described as "nailed" shall be deemed to be fixed with hardened steel nails or pins or shot pinned to brickwork or concrete
C290: Items described as "plugged" shall be deemed to include screwing to fibre, plastic or metal plugs at not exceeding 600mm centres, and where described as "bolted", the bolts are measured elsewhere
C292: NAILED UP CEILINGS | D292: H3
C293: 12mm Tongued and grooved wrought softwood boarding in 90mm widths | D293: H4
A295: 6.6.1 | C295: Ceilings to be Isoboard high density 32-36kg/m rigid extruded polystrene 100% closed cell insulation ceiling formd of 25mm thick x600mm wide tongue and groove boards, with IsoPine finish, laid horizontaally over trusses and secured with timberfix screws through 38x38mm S.A Pine timber purlins/battens | D295: m2 | E295: 122
A297: 6.6.2 | C297: Extra over ceilings for 600 x 600mm trap door of 44 x 44mm wrought softwood rebated framing with one 38 x 38mm sawn softwood cross brander covered with ceiling board and fitted flush in opening | D297: No | E297: 2
C299: Plasterboard cornices | D299: H4
A301: 6.6.3 | C301: 75mm Coved cornices, nailed | D301: m | E301: 273
A303: 6.7 | C303: BILL NO 6.7 | D303: H1
C305: IRONMONGERY | D305: H2
C306: Tenderers are referred to the "General Preambles for Trades" 2017 Edition, published by the Association of South African Quantity Surveyors (ASAQS).
C308: SUPPLEMENTARY PREAMBLES | D308: H3
C309: Finishes to ironmongery | D309: H4
C310: Where applicable finishes to ironmongery are indicated by suffixes in accordance with the following list: BS Satin bronze lacquered CH Chromium plated, SC Satin chromium plated, SE Silver enamelled, GE Grey enamelled, AS Anodised silver, AB Anodised bronze, AG Anodised gold, ABL Anodised black, PB Polished brass, PL Polished and lacquered, PT Epoxy coated, SD Sanded
A312: CARRIED FORWARD
A313: BROUGHT FORWARD
C314: SUNDRIES | D314: H3
C316: Solid | D316: H4
A318: 6.7.1 | C318: 255/E41 door stop, plugged | D318: No | E318: 32
A320: 6.8 | C320: BILL NO 6.8 | D320: H1
C322: METALWORK | D322: H2
C324: SUPPLEMENTARY PREAMBLES | D324: H3
C325: Tenderers are referred to the "General Preambles for Trades" 2017 Edition, published by the Association of South African Quantity Surveyors (ASAQS).
C327: PRESSED STEEL DOOR FRAMES | D327: H3
C329: 1,3mm Double rebated frames suitable for half brick walls | D329: H4
A331: 6.8.1 | C331: Frame for door 813 x 2032mm high (Type B) | D331: No | E331: 19
A333: 6.8.2 | C333: Frame for door 813 x 2032mm high (Type A) | D333: No | E333: 5
C335: 1,3mm Double rebated frames suitable for one brick walls | D335: H4
A337: 6.8.3 | C337: Frame for door 813 x 2032mm high (Type A) | D337: No | E337: 2
A339: 6.8.4 | C339: Frame for door 813 x 2032mm high (Type D) | D339: No | E339: 3
A341: 6.8.5 | C341: Frame for door 820 x 2100mm high (Type C paraplegic) | D341: No | E341: 1
C343: ALUMINIUM WINDOWS, DOORS, SHOPFRONTS, ETC | D343: H3
C345: AAAMSA guide | D345: H4
C347: Windows, doors, etc shall comply with and meet the minimum recommended performance requirements as set out in the General Specification for Architectural Aluminium and Glass Products (Fourth Edition) as published by the Association of Architectural Aluminium Manufacturers of South Africa (AAAMSA) In the event of any discrepancy between the AAAMSA guide and the project specification as set out on the drawings issued, requirements of the project specification will take preference
C349: Glass | D349: H4
C351: Glazing to be in accordance with window and door schedules. Glazing to be with patent rubber gaskets with glazing beads and complying with BS 952. Where glazing thickness is not stated on these schedules, glass thicknesses are to comply with AAAMSA requirements. Safety glass shall comply with SABS 1263. The National Building Regulations shall be observed with regard to the utilisation of safety glass
A353: CARRIED FORWARD
A354: BROUGHT FORWARD
C355: Drawings
C356: Reference is to be made to the drawings issued together with this document and referred to in descriptions. Any uncertainty as to requirements must be clarified with the principal agent .The tenderer shall supply workshop drawings to be approved by the principal agent before manufacture.
C358: Measurements | D358: H4
C360: Measurements for all shopfronts, windows, doors, etc are to be taken on site prior to manufacture
C362: Frames | D362: H4
... 201 more rows

Sheet Summary
B1: CONSTRUCTION OF NEW ZAMDELA (IN-AMELIA) CEMETERY
C4: SCHEDULE 7 :SUMMARY
B5: Summary of Schedules
A7: SCHEDULE NO. | B7: DESCRIPTION
A8: Schedule 1 | B8: General
A9: Schedule 2 | B9: Roadworks and Bulk Earthworks
A10: Schedule 3 | B10: Stormwater Management
A11: Schedule 4 | B11: Water network
A12: Schedule 5 | B12: Sewer services
A13: Schedule 6 | B13: Buildings
A14: Sub-total 1
A15: 10% Contingencies
A16: Sub-total 2
A17: Add 15% VAT
A18: Total
